[Event "FIDE WCCC Girls-12 2024"]
[Site "Montesilvano"]
[Date "2024.11.18"]
[Round "3.6"]
[White "Abak, Tuana"]
[Black "Siddhi Rao"]
[Result "0-1"]
[ECO "C30"]
[WhiteElo "1806"]
[BlackElo "1677"]
[PlyCount "146"]
[EventDate "2024.11.18"]
[EventType "swiss"]
[EventCountry "ITA"]
[TimeControl "5400+30"]

1. e4 {[%emt 0:00:02]} e5 {[%emt 0:00:07]} 2. Nc3 {[%emt 0:00:04]} Nc6 {[%emt 0:00:10]} 3. Bc4 {[%emt 0:00:05]} Nf6 {[%emt 0:00:23]} 4. d3 {[%emt 0:00:03]} Bc5 {[%emt 0:00:27]} 5. f4 {[%emt 0:00:05]} d6 {[%emt 0:02:34]} 6. Nf3 {[%emt 0:00:08]} Qe7 {[%emt 0:07:34]} 7. f5 {[%emt 0:07:32]} Na5 {[%emt 0:05:10]} 8. Nd5 {[%emt 0:11:26]} Nxd5 {[%emt 0:01:21]} 9. Bxd5 {[%emt 0:00:02]} c6 {[%emt 0:00:55]} 10. Bb3 {[%emt 0:00:01]} Nxb3 {[%emt 0:00:57]} 11. axb3 {[%emt 0:00:02]} d5 {[%emt 0:04:08]} 12. Qe2 {[%emt 0:02:29]} f6 {[%emt 0:01:51]} 13. Bd2 {[%emt 0:00:57]} Bd7 {[%emt 0:03:25]} 14. g4 {[%emt 0:05:59]} dxe4 {[%emt 0:06:43]} 15. dxe4 {[%emt 0:00:03]} O-O-O {[%emt 0:02:26]} 16. O-O-O {[%emt 0:01:00]} Kb8 {[%emt 0:07:32]} 17. Qc4 {[%emt 0:10:27]} Be8 {[%emt 0:03:02]} 18. Ba5 {[%emt 0:00:21]} Rc8 {[%emt 0:06:23]} 19. Qd3 {[%emt 0:06:42]} b6 {[%emt 0:08:17]} 20. Bc3 {[%emt 0:02:09]} Bf7 {[%emt 0:01:39]} 21. h4 {[%emt 0:03:13]} Rhd8 {[%emt 0:03:23]} 22. Qe2 {[%emt 0:00:02]} Kb7 {[%emt 0:06:12]} 23. Kb1 {[%emt 0:04:41]} a5 {[%emt 0:02:02]} 24. Rxd8 {[%emt 0:00:57]} Rxd8 {[%emt 0:00:30]} 25. Rd1 {[%emt 0:00:09]} Rd6 {[%emt 0:02:17]} 26. Rxd6 {[%emt 0:00:38]} Qxd6 {[%emt 0:00:38]} 27. Qd2 {[%emt 0:00:47]} Qxd2 {[%emt 0:03:46]} 28. Bxd2 {[%emt 0:00:02]} Bf2 {[%emt 0:04:31]} 29. Kc1 {[%emt 0:00:53]} Kc7 {[%emt 0:02:37]} 30. Kd1 {[%emt 0:00:07]} Kd6 {[%emt 0:00:57]} 31. Ke2 {[%emt 0:00:06]} Bc5 {[%emt 0:00:23]} 32. Ne1 {[%emt 0:03:19]} Be8 {[%emt 0:03:51]} 33. Nd3 {[%emt 0:00:14]} Bf7 {[%emt 0:02:24]} 34. Nxc5 {[%emt 0:00:03]} Kxc5 {[%emt 0:00:07]} 35. Kd3 {[%emt 0:00:31]} Kd6 {[%emt 0:03:59]} 36. g5 {[%emt 0:07:10]} c5 {[%emt 0:01:10]} 37. gxf6 {[%emt 0:00:27]} gxf6 {[%emt 0:00:09]} 38. Be1 {[%emt 0:02:38]} Ke7 {[%emt 0:00:29]} 39. Bf2 {[%emt 0:01:04]} Kd6 {[%emt 0:02:24]} 40. Be3 {[%emt 0:00:22]} Ke7 {[%emt 0:00:30]} 41. Bh6 {[%emt 0:00:40]} Kd6 {[%emt 0:00:44]} 42. Bf8+ {[%emt 0:00:24]} Kd7 {[%emt 0:00:06]} 43. Ke3 {[%emt 0:03:23]} Ke8 {[%emt 0:00:33]} 44. Bh6 {[%emt 0:00:26]} Ke7 {[%emt 0:00:37]} 45. Kd3 {[%emt 0:00:19]} Ke8 {[%emt 0:00:39]} 46. Kc3 {[%emt 0:01:09]} Ke7 {[%emt 0:00:28]} 47. Bg7 {[%emt 0:00:10]} Bg8 {[%emt 0:00:44]} 48. Kd3 {[%emt 0:00:04]} Bf7 {[%emt 0:01:36]} 49. Ke3 {[%emt 0:00:50]} Bg8 {[%emt 0:00:18]} 50. Bh6 {[%emt 0:00:18]} Bf7 {[%emt 0:00:59]} 51. Kf2 {[%emt 0:00:21]} Bg8 {[%emt 0:00:49]} 52. Kf3 {[%emt 0:00:06]} Bf7 {[%emt 0:00:36]} 53. Kg4 {[%emt 0:00:04]} Bg8 {[%emt 0:00:18]} 54. Be3 {[%emt 0:03:06]} Bf7 {[%emt 0:00:17]} 55. Bd2 {[%emt 0:00:09]} h5+ {[%emt 0:00:20]} 56. Kf3 {[%emt 0:00:04]} Bg8 {[%emt 0:00:28]} 57. Be3 {[%emt 0:00:48]} Bf7 {[%emt 0:00:07]} 58. Ke2 {[%emt 0:00:05]} Bg8 {[%emt 0:00:37]} 59. Kd2 {[%emt 0:00:05]} Bf7 {[%emt 0:00:17]} 60. Kc1 {[%emt 0:01:02]} Be8 {[%emt 0:01:17]} 61. Kb1 {[%emt 0:00:23]} Bc6 {[%emt 0:00:09]} 62. Ka2 {[%emt 0:00:20]} Bxe4 {[%emt 0:00:18]} 63. Ka3 {[%emt 0:00:03]} Bxc2 {[%emt 0:01:29]} 64. Ka4 {[%emt 0:00:09]} Bd3 {[%emt 0:00:06]} 65. b4 {[%emt 0:01:05]} axb4 {[%emt 0:00:11]} 66. b3 {[%emt 0:00:09]} Bxf5 {[%emt 0:01:18]} 67. Kb5 {[%emt 0:00:48]} Bc2 {[%emt 0:00:08]} 68. Kc4 {[%emt 0:00:46]} Kd6 {[%emt 0:00:40]} 69. Bf2 {[%emt 0:00:56]} Kc6 {[%emt 0:00:37]} 70. Bxc5 {[%emt 0:00:14]} Bxb3+ {[%emt 0:00:03]} 71. Kxb4 {[%emt 0:00:07]} bxc5+ {[%emt 0:00:05]} 72. Kxb3 {[%emt 0:00:05]} Kd5 {[%emt 0:00:06]} 73. Kc3 {[%emt 0:00:03]} f5 {[%emt 0:00:04]} 0-1

[Event "FIDE WCCC Girls-12 2024"]
[Site "Montesilvano"]
[Date "2024.11.18"]
[Round "3.7"]
[White "Harutyunyan, Gabriela"]
[Black "Li, Sophie"]
[Result "1/2-1/2"]
[ECO "C45"]
[WhiteElo "1730"]
[BlackElo "1798"]
[PlyCount "98"]
[EventDate "2024.11.18"]
[EventType "swiss"]
[EventCountry "ITA"]
[TimeControl "5400+30"]

1. e4 {[%emt 0:00:12]} e5 {[%emt 0:00:11]} 2. Nf3 {[%emt 0:00:11]} Nc6 {[%emt 0:00:25]} 3. d4 {[%emt 0:00:17]} exd4 {[%emt 0:00:13]} 4. Nxd4 {[%emt 0:00:21]} Qf6 {[%emt 0:00:54]} 5. Be3 {[%emt 0:00:50]} Bc5 {[%emt 0:00:37]} 6. c3 {[%emt 0:01:27]} Nge7 {[%emt 0:01:09]} 7. Bc4 {[%emt 0:04:07]} Qg6 {[%emt 0:06:47]} 8. O-O {[%emt 0:07:54]} O-O {[%emt 0:05:10]} 9. Nxc6 {[%emt 0:03:27]} Qxc6 {[%emt 0:00:38]} 10. Bxc5 {[%emt 0:01:37]} Qxc5 {[%emt 0:00:10]} 11. Na3 {[%emt 0:03:18]} Nc6 {[%emt 0:02:49]} 12. b4 {[%emt 0:07:16]} Qe5 {[%emt 0:01:39]} 13. Qc2 {[%emt 0:04:53]} d6 {[%emt 0:03:57]} 14. f4 {[%emt 0:02:30]} Qf6 {[%emt 0:00:28]} 15. Nb5 {[%emt 0:02:23]} Be6 {[%emt 0:00:34]} 16. Bxe6 {[%emt 0:01:34]} fxe6 {[%emt 0:00:12]} 17. Qb3 {[%emt 0:00:27]} Rac8 {[%emt 0:00:44]} 18. Rad1 {[%emt 0:05:03]} Kh8 {[%emt 0:02:22]} 19. Nd4 {[%emt 0:01:27]} Nxd4 {[%emt 0:01:04]} 20. cxd4 {[%emt 0:00:08]} Qg6 {[%emt 0:01:15]} 21. Qe3 {[%emt 0:01:21]} d5 {[%emt 0:01:40]} 22. e5 {[%emt 0:03:25]} Rf5 {[%emt 0:02:41]} 23. Rf3 {[%emt 0:01:06]} Rcf8 {[%emt 0:00:38]} 24. Rdf1 {[%emt 0:00:56]} R5f7 {[%emt 0:01:14]} 25. Qc3 {[%emt 0:02:39]} c6 {[%emt 0:02:00]} 26. a4 {[%emt 0:02:00]} a6 {[%emt 0:00:37]} 27. a5 {[%emt 0:00:22]} Qg4 {[%emt 0:00:54]} 28. Qe3 {[%emt 0:03:42]} g5 {[%emt 0:05:32]} 29. h3 {[%emt 0:01:23]} Qh4 {[%emt 0:00:45]} 30. f5 {[%emt 0:01:51]} Rxf5 {[%emt 0:00:45]} 31. Rxf5 {[%emt 0:01:40]} exf5 {[%emt 0:02:47]} 32. e6 {[%emt 0:00:22]} Qe4 {[%emt 0:00:26]} 33. Qxe4 {[%emt 0:00:21]} dxe4 {[%emt 0:00:04]} 34. Rxf5 {[%emt 0:00:37]} Re8 {[%emt 0:00:49]} 35. Rxg5 {[%emt 0:01:37]} Rxe6 {[%emt 0:00:06]} 36. Kf2 {[%emt 0:00:14]} e3+ {[%emt 0:01:23]} 37. Ke2 {[%emt 0:00:07]} Re4 {[%emt 0:00:10]} 38. Re5 {[%emt 0:02:47]} Rxd4 {[%emt 0:00:19]} 39. Re8+ {[%emt 0:00:06]} Kg7 {[%emt 0:00:15]} 40. Re7+ {[%emt 0:00:05]} Kg6 {[%emt 0:00:20]} 41. Rxb7 {[%emt 0:00:08]} Rd2+ {[%emt 0:00:33]} 42. Kxe3 {[%emt 0:00:06]} Rxg2 {[%emt 0:00:09]} 43. Kf3 {[%emt 0:00:09]} Rb2 {[%emt 0:00:10]} 44. Rb6 {[%emt 0:01:06]} Kf5 {[%emt 0:00:27]} 45. Rxc6 {[%emt 0:00:23]} Rxb4 {[%emt 0:00:13]} 46. Rxa6 {[%emt 0:00:07]} Rb3+ {[%emt 0:00:16]} 47. Kg2 {[%emt 0:00:11]} Ra3 {[%emt 0:00:31]} 48. Ra8 {[%emt 0:00:21]} Kg5 {[%emt 0:00:23]} 49. a6 {[%emt 0:00:10]} Ra2+ {[%emt 0:00:37]} 1/2-1/2

[Event "FIDE WCCC Girls-12 2024"]
[Site "Montesilvano"]
[Date "2024.11.18"]
[Round "3.8"]
[White "Bohatyrova, Mariia"]
[Black "Amanzhol, Khanzada"]
[Result "0-1"]
[ECO "B36"]
[WhiteElo "1722"]
[BlackElo "1780"]
[PlyCount "74"]
[EventDate "2024.11.18"]
[EventType "swiss"]
[EventCountry "ITA"]
[TimeControl "5400+30"]

1. e4 {[%emt 0:00:03]} c5 {[%emt 0:00:58]} 2. Nf3 {[%emt 0:00:07]} Nc6 {[%emt 0:00:06]} 3. d4 {[%emt 0:00:06]} cxd4 {[%emt 0:00:07]} 4. Nxd4 {[%emt 0:00:06]} g6 {[%emt 0:00:10]} 5. c4 {[%emt 0:00:05]} Nf6 {[%emt 0:00:15]} 6. Nc3 {[%emt 0:00:11]} d6 {[%emt 0:00:55]} 7. Be2 {[%emt 0:00:33]} Nxd4 {[%emt 0:00:12]} 8. Qxd4 {[%emt 0:00:12]} Bg7 {[%emt 0:00:03]} 9. Be3 {[%emt 0:01:09]} O-O {[%emt 0:00:34]} 10. Qd2 {[%emt 0:02:15]} Be6 {[%emt 0:00:15]} 11. f3 {[%emt 0:05:27]} Qa5 {[%emt 0:03:10]} 12. O-O {[%emt 0:02:39]} Rfc8 {[%emt 0:02:16]} 13. Nd5 {[%emt 0:27:46]} Qxd2 {[%emt 0:03:04]} 14. Bxd2 {[%emt 0:00:22]} Kf8 {[%emt 0:03:49]} 15. Ne3 {[%emt 0:09:37]} Nd7 {[%emt 0:09:50]} 16. Rab1 {[%emt 0:01:53]} b5 {[%emt 0:04:26]} 17. b3 {[%emt 0:06:29]} Bd4 {[%emt 0:03:25]} 18. Rfc1 {[%emt 0:15:18]} bxc4 {[%emt 0:01:49]} 19. Bxc4 {[%emt 0:00:54]} Bxc4 {[%emt 0:02:22]} 20. Rxc4 {[%emt 0:02:48]} Rxc4 {[%emt 0:01:39]} 21. bxc4 {[%emt 0:00:02]} Ne5 {[%emt 0:03:12]} 22. Rc1 {[%emt 0:03:12]} Rb8 {[%emt 0:04:30]} 23. Kf1 {[%emt 0:02:50]} Rb2 {[%emt 0:01:20]} 24. Rc2 {[%emt 0:07:23]} Nxc4 {[%emt 0:03:31]} 25. Rxb2 {[%emt 0:00:59]} Nxb2 {[%emt 0:00:05]} 26. Ke2 {[%emt 0:00:31]} Ke8 {[%emt 0:01:46]} 27. Nd5 {[%emt 0:01:19]} e6 {[%emt 0:00:59]} 28. Nb4 {[%emt 0:01:02]} Kd7 {[%emt 0:01:21]} 29. Nc2 {[%emt 0:02:07]} Bc5 {[%emt 0:00:20]} 30. Be3 {[%emt 0:03:08]} Kc6 {[%emt 0:01:14]} 31. Bf4 {[%emt 0:04:25]} Kb5 {[%emt 0:01:11]} 32. Kd2 {[%emt 0:00:38]} Kc4 {[%emt 0:00:33]} 33. Ne3+ {[%emt 0:00:34]} Bxe3+ {[%emt 0:00:28]} 34. Bxe3 {[%emt 0:00:09]} a6 {[%emt 0:00:11]} 35. Kc2 {[%emt 0:00:22]} Nd3 {[%emt 0:00:13]} 36. h3 {[%emt 0:01:02]} Ne1+ {[%emt 0:01:17]} 37. Kd2 {[%emt 0:00:12]} Nxg2 {[%emt 0:00:21]} 0-1

[Event "FIDE WCCC Girls-12 2024"]
[Site "Montesilvano"]
[Date "2024.11.18"]
[Round "3.9"]
[White "Rzadkowska, Kaja"]
[Black "Qiu, Laurie"]
[Result "1/2-1/2"]
[ECO "E32"]
[WhiteElo "1798"]
[BlackElo "1994"]
[PlyCount "105"]
[EventDate "2024.11.18"]
[EventType "swiss"]
[EventCountry "ITA"]
[TimeControl "5400+30"]

1. d4 {[%emt 0:00:01]} Nf6 {[%emt 0:00:06]} 2. c4 {[%emt 0:00:05]} e6 {[%emt 0:00:05]} 3. Nc3 {[%emt 0:00:21]} Bb4 {[%emt 0:00:12]} 4. Qc2 {[%emt 0:00:12]} b6 {[%emt 0:00:35]} 5. e4 {[%emt 0:03:24]} Bxc3+ {[%emt 0:11:09]} 6. bxc3 {[%emt 0:00:22]} d6 {[%emt 0:01:56]} 7. Bd3 {[%emt 0:07:02]} Nbd7 {[%emt 0:06:47]} 8. Ne2 {[%emt 0:06:55]} c5 {[%emt 0:07:30]} 9. O-O {[%emt 0:07:35]} Ba6 {[%emt 0:05:25]} 10. Ba3 {[%emt 0:08:35]} Rc8 {[%emt 0:06:31]} 11. f3 {[%emt 0:05:54]} O-O {[%emt 0:03:53]} 12. Rad1 {[%emt 0:03:21]} Qc7 {[%emt 0:05:06]} 13. Rd2 {[%emt 0:08:01]} Rfd8 {[%emt 0:09:35]} 14. Qa4 {[%emt 0:03:21]} Bb7 {[%emt 0:00:55]} 15. Ng3 {[%emt 0:08:55]} g6 {[%emt 0:09:17]} 16. Bc1 {[%emt 0:08:32]} cxd4 {[%emt 0:29:28]} 17. cxd4 {[%emt 0:00:32]} e5 {[%emt 0:00:00]} 18. Bb2 {[%emt 0:03:25]} exd4 {[%emt 0:00:00]} 19. Bxd4 {[%emt 0:01:16]} Qc6 {[%emt 0:00:00]} 20. Qa3 {[%emt 0:02:30]} Ne5 {[%emt 0:00:00]} 21. f4 {[%emt 0:05:00]} Ned7 {[%emt 0:00:00]} 22. e5 {[%emt 0:06:33]} dxe5 {[%emt 0:00:00]} 23. fxe5 {[%emt 0:00:41]} Ng4 {[%emt 0:00:00]} 24. Be4 {[%emt 0:08:24]} Qc7 {[%emt 0:00:00]} 25. Bxb7 {[%emt 0:00:42]} Qxb7 {[%emt 0:00:00]} 26. Qe7 {[%emt 0:01:04]} Nc5 {[%emt 0:00:00]} 27. Rxf7 {[%emt 0:00:23]} Qxe7 {[%emt 0:00:00]} 28. Rxe7 {[%emt 0:00:01]} Kf8 {[%emt 0:01:08]} 29. Rxh7 {[%emt 0:00:39]} Ne6 {[%emt 0:00:19]} 30. Rh8+ {[%emt 0:00:50]} Ke7 {[%emt 0:00:43]} 31. Rh7+ {[%emt 0:00:21]} Kf8 {[%emt 0:00:49]} 32. Rh8+ {[%emt 0:00:16]} Kf7 {[%emt 0:00:36]} 33. Rxd8 {[%emt 0:00:12]} Rxd8 {[%emt 0:00:08]} 34. Bc3 {[%emt 0:00:49]} Rxd2 {[%emt 0:00:14]} 35. Bxd2 {[%emt 0:00:01]} Nxe5 {[%emt 0:00:09]} 36. Bc3 {[%emt 0:01:10]} Nxc4 {[%emt 0:00:06]} 37. Kf2 {[%emt 0:00:19]} Nc5 {[%emt 0:01:34]} 38. Ke2 {[%emt 0:01:03]} Ke6 {[%emt 0:00:51]} 39. Nf1 {[%emt 0:00:28]} a5 {[%emt 0:01:03]} 40. Ne3 {[%emt 0:00:29]} Nd6 {[%emt 0:00:24]} 41. Kd1 {[%emt 0:00:36]} Nce4 {[%emt 0:01:10]} 42. Bd4 {[%emt 0:00:24]} b5 {[%emt 0:00:37]} 43. Kc2 {[%emt 0:00:25]} Nc4 {[%emt 0:02:15]} 44. Nxc4 {[%emt 0:00:25]} bxc4 {[%emt 0:00:06]} 45. a4 {[%emt 0:00:28]} Nd6 {[%emt 0:00:58]} 46. Bc3 {[%emt 0:00:50]} Nb7 {[%emt 0:00:06]} 47. Bd2 {[%emt 0:00:25]} Nc5 {[%emt 0:01:05]} 48. Bxa5 {[%emt 0:00:11]} Nxa4 {[%emt 0:00:09]} 49. Be1 {[%emt 0:00:22]} Kd5 {[%emt 0:00:19]} 50. h4 {[%emt 0:00:44]} Nc5 {[%emt 0:00:30]} 51. g4 {[%emt 0:00:26]} Ne4 {[%emt 0:01:06]} 52. h5 {[%emt 0:00:25]} gxh5 {[%emt 0:00:37]} 53. gxh5 {[%emt 0:00:02]} 1/2-1/2

[Event "FIDE WCCC Girls-12 2024"]
[Site "Montesilvano"]
[Date "2024.11.18"]
[Round "3.10"]
[White "Ejsymont, Blanka"]
[Black "Alcantara, Levanah"]
[Result "1-0"]
[ECO "C02"]
[WhiteElo "1945"]
[BlackElo "1753"]
[PlyCount "53"]
[EventDate "2024.11.18"]
[EventType "swiss"]
[EventCountry "ITA"]
[TimeControl "5400+30"]

1. e4 {[%emt 0:00:02]} e6 {[%emt 0:00:11]} 2. d4 {[%emt 0:00:04]} d5 {[%emt 0:00:07]} 3. e5 {[%emt 0:00:02]} c5 {[%emt 0:00:18]} 4. c3 {[%emt 0:00:04]} Nc6 {[%emt 0:00:26]} 5. Nf3 {[%emt 0:00:07]} Qb6 {[%emt 0:00:43]} 6. Na3 {[%emt 0:01:33]} cxd4 {[%emt 0:03:20]} 7. cxd4 {[%emt 0:00:05]} Bb4+ {[%emt 0:02:12]} 8. Bd2 {[%emt 0:00:34]} Bxa3 {[%emt 0:01:53]} 9. bxa3 {[%emt 0:00:32]} Nxd4 {[%emt 0:04:29]} 10. Qa4+ {[%emt 0:00:26]} Nc6 {[%emt 0:00:13]} 11. Bd3 {[%emt 0:01:56]} Nge7 {[%emt 0:02:51]} 12. O-O {[%emt 0:02:41]} Bd7 {[%emt 0:03:38]} 13. Qg4 {[%emt 0:04:22]} Ng6 {[%emt 0:01:45]} 14. Rfe1 {[%emt 0:11:23]} Rc8 {[%emt 0:20:41]} 15. h4 {[%emt 0:04:49]} h5 {[%emt 0:11:05]} 16. Qg3 {[%emt 0:08:08]} Nce7 {[%emt 0:01:56]} 17. Rab1 {[%emt 0:03:45]} Qc7 {[%emt 0:03:50]} 18. Bb4 {[%emt 0:03:39]} Rh6 {[%emt 0:05:57]} 19. Bd6 {[%emt 0:03:48]} Qa5 {[%emt 0:01:46]} 20. Rxb7 {[%emt 0:09:32]} Qa4 {[%emt 0:08:09]} 21. Bxe7 {[%emt 0:03:14]} Nxe7 {[%emt 0:03:52]} 22. Qxg7 {[%emt 0:01:47]} Qf4 {[%emt 0:07:06]} 23. Rb4 {[%emt 0:06:44]} Rc4 {[%emt 0:01:07]} 24. Bxc4 {[%emt 0:01:18]} Rg6 {[%emt 0:02:31]} 25. Qh8+ {[%emt 0:01:22]} Ng8 {[%emt 0:01:44]} 26. Rb8+ {[%emt 0:02:03]} Ke7 {[%emt 0:00:18]} 27. Rxg8 {[%emt 0:00:45]} 1-0

[Event "FIDE WCCC Girls-12 2024"]
[Site "Montesilvano"]
[Date "2024.11.18"]
[Round "3.11"]
[White "Hanya Shah"]
[Black "Baruch, Amit"]
[Result "0-1"]
[ECO "E43"]
[WhiteElo "1888"]
[BlackElo "1747"]
[PlyCount "110"]
[EventDate "2024.11.18"]
[EventType "swiss"]
[EventCountry "ITA"]
[TimeControl "5400+30"]

1. c4 {[%emt 0:00:04]} Nf6 {[%emt 0:00:07]} 2. Nc3 {[%emt 0:00:22]} e6 {[%emt 0:00:13]} 3. Nf3 {[%emt 0:00:07]} b6 {[%emt 0:00:40]} 4. e3 {[%emt 0:00:47]} Bb7 {[%emt 0:02:04]} 5. d4 {[%emt 0:00:35]} Bb4 {[%emt 0:00:28]} 6. Be2 {[%emt 0:02:14]} O-O {[%emt 0:02:04]} 7. O-O {[%emt 0:00:10]} Bxc3 {[%emt 1:28:24]} 8. bxc3 {[%emt 0:00:45]} d6 {[%emt 0:00:00]} 9. Nd2 {[%emt 0:06:35]} Nbd7 {[%emt 0:00:00]} 10. Bd3 {[%emt 0:11:14]} e5 {[%emt 0:00:00]} 11. e4 {[%emt 0:01:40]} Re8 {[%emt 0:00:00]} 12. Re1 {[%emt 0:00:43]} h6 {[%emt 0:00:00]} 13. Qc2 {[%emt 0:09:42]} Nh7 {[%emt 0:00:00]} 14. Nf1 {[%emt 0:09:48]} Qf6 {[%emt 0:00:00]} 15. Be3 {[%emt 0:05:28]} Nhf8 {[%emt 0:00:00]} 16. f3 {[%emt 0:11:12]} Ne6 {[%emt 0:00:00]} 17. Qf2 {[%emt 0:00:44]} Ba6 {[%emt 0:00:00]} 18. Nd2 {[%emt 0:01:25]} Ndf8 {[%emt 0:00:00]} 19. Bf1 {[%emt 0:06:52]} Ng6 {[%emt 0:00:00]} 20. Rad1 {[%emt 0:02:26]} Nef4 {[%emt 0:00:00]} 21. g3 {[%emt 0:02:35]} Ne6 {[%emt 0:00:00]} 22. Nb1 {[%emt 0:02:56]} Red8 {[%emt 0:00:00]} 23. Na3 {[%emt 0:01:10]} Qe7 {[%emt 0:00:00]} 24. Nc2 {[%emt 0:04:30]} Qe8 {[%emt 0:00:00]} 25. Nb4 {[%emt 0:07:13]} Bb7 {[%emt 0:00:00]} 26. Nd3 {[%emt 0:03:44]} Qa4 {[%emt 0:00:00]} 27. d5 {[%emt 0:02:33]} Nef8 {[%emt 0:00:00]} 28. f4 {[%emt 0:02:46]} exf4 {[%emt 0:00:00]} 29. Nxf4 {[%emt 0:00:28]} Ne5 {[%emt 0:00:00]} 30. Rb1 {[%emt 0:02:15]} Rab8 {[%emt 0:03:45]} 31. Bd4 {[%emt 0:01:03]} Re8 {[%emt 0:01:08]} 32. Bxe5 {[%emt 0:01:02]} Rxe5 {[%emt 0:00:22]} 33. Bd3 {[%emt 0:00:34]} a5 {[%emt 0:00:22]} 34. Rf1 {[%emt 0:00:45]} Re7 {[%emt 0:00:29]} 35. Ng2 {[%emt 0:00:29]} Bc8 {[%emt 0:01:46]} 36. Nf4 {[%emt 0:00:37]} Nd7 {[%emt 0:00:57]} 37. Qd4 {[%emt 0:00:52]} Ne5 {[%emt 0:00:32]} 38. Be2 {[%emt 0:00:31]} Ba6 {[%emt 0:00:53]} 39. Ng2 {[%emt 0:00:32]} Qxa2 {[%emt 0:00:30]} 40. Rfe1 {[%emt 0:00:26]} Bxc4 {[%emt 0:00:31]} 41. Ra1 {[%emt 0:00:16]} Qxe2 {[%emt 0:00:17]} 42. Rxe2 {[%emt 0:00:25]} Nf3+ {[%emt 0:00:05]} 43. Kf2 {[%emt 0:00:32]} Nxd4 {[%emt 0:00:03]} 44. cxd4 {[%emt 0:00:03]} Bxe2 {[%emt 0:00:10]} 45. Kxe2 {[%emt 0:00:06]} Rxe4+ {[%emt 0:00:06]} 46. Kd3 {[%emt 0:00:10]} Rbe8 {[%emt 0:00:13]} 47. Nf4 {[%emt 0:00:15]} Re3+ {[%emt 0:00:45]} 48. Kd2 {[%emt 0:00:06]} Rb3 {[%emt 0:00:16]} 49. Rc1 {[%emt 0:00:08]} Re7 {[%emt 0:00:41]} 50. Rc2 {[%emt 0:00:21]} a4 {[%emt 0:00:14]} 51. Ra2 {[%emt 0:00:20]} a3 {[%emt 0:00:31]} 52. Nd3 {[%emt 0:00:09]} Rb5 {[%emt 0:01:16]} 53. Rxa3 {[%emt 0:00:12]} Rxd5 {[%emt 0:00:12]} 54. Ra4 {[%emt 0:00:20]} c5 {[%emt 0:01:24]} 55. dxc5 {[%emt 0:00:05]} dxc5 {[%emt 0:00:08]} 0-1

[Event "FIDE WCCC Girls-12 2024"]
[Site "Montesilvano"]
[Date "2024.11.18"]
[Round "3.12"]
[White "Venskaya, Nika"]
[Black "Anu, Bayart-Uchral"]
[Result "1/2-1/2"]
[ECO "E18"]
[WhiteElo "1871"]
[BlackElo "1624"]
[PlyCount "87"]
[EventDate "2024.11.18"]
[EventType "swiss"]
[EventCountry "ITA"]
[TimeControl "5400+30"]

1. d4 {[%emt 0:00:06]} Nf6 {[%emt 0:00:12]} 2. Nf3 {[%emt 0:00:09]} e6 {[%emt 0:00:13]} 3. g3 {[%emt 0:00:54]} b6 {[%emt 0:00:14]} 4. Bg2 {[%emt 0:00:10]} Bb7 {[%emt 0:00:20]} 5. O-O {[%emt 0:00:54]} Be7 {[%emt 0:00:24]} 6. c4 {[%emt 0:00:35]} O-O {[%emt 0:00:49]} 7. Re1 {[%emt 0:02:29]} d6 {[%emt 0:03:59]} 8. Nc3 {[%emt 0:03:23]} c5 {[%emt 0:08:31]} 9. d5 {[%emt 0:03:18]} exd5 {[%emt 0:02:27]} 10. cxd5 {[%emt 0:05:48]} Nbd7 {[%emt 0:01:08]} 11. e4 {[%emt 0:02:15]} Ng4 {[%emt 0:03:29]} 12. h3 {[%emt 0:03:28]} Nge5 {[%emt 0:00:37]} 13. Nxe5 {[%emt 0:00:59]} dxe5 {[%emt 0:00:50]} 14. f4 {[%emt 0:03:35]} a6 {[%emt 0:02:35]} 15. a4 {[%emt 0:03:58]} Bd6 {[%emt 0:03:21]} 16. Qd3 {[%emt 0:15:34]} Qc7 {[%emt 0:03:45]} 17. f5 {[%emt 0:03:27]} c4 {[%emt 0:09:04]} 18. Qe2 {[%emt 0:04:34]} b5 {[%emt 0:00:28]} 19. Be3 {[%emt 0:08:02]} b4 {[%emt 0:00:50]} 20. Na2 {[%emt 0:01:06]} a5 {[%emt 0:01:21]} 21. Kh1 {[%emt 0:18:53]} Ba6 {[%emt 0:04:18]} 22. Qf3 {[%emt 0:02:12]} Nc5 {[%emt 0:06:37]} 23. Nc1 {[%emt 0:01:31]} Qd7 {[%emt 0:01:10]} 24. Bxc5 {[%emt 0:01:19]} Bxc5 {[%emt 0:00:05]} 25. Ne2 {[%emt 0:01:48]} c3 {[%emt 0:11:26]} 26. b3 {[%emt 0:04:54]} Rfc8 {[%emt 0:04:15]} 27. Rac1 {[%emt 0:01:18]} Qa7 {[%emt 0:00:53]} 28. Rc2 {[%emt 0:02:44]} Bf2 {[%emt 0:04:40]} 29. Rd1 {[%emt 0:01:14]} Be3 {[%emt 0:00:22]} 30. Bf1 {[%emt 0:01:25]} Bd2 {[%emt 0:00:49]} 31. Kg2 {[%emt 0:00:57]} Qd7 {[%emt 0:02:57]} 32. Nc1 {[%emt 0:01:14]} Bxf1+ {[%emt 0:00:18]} 33. Rxf1 {[%emt 0:01:09]} Ra6 {[%emt 0:02:02]} 34. Ne2 {[%emt 0:01:04]} Re8 {[%emt 0:01:51]} 35. Qd3 {[%emt 0:00:31]} Rd6 {[%emt 0:01:37]} 36. Ng1 {[%emt 0:00:38]} Qa7 {[%emt 0:01:10]} 37. Nf3 {[%emt 0:00:50]} Bh6 {[%emt 0:01:53]} 38. Re1 {[%emt 0:00:30]} f6 {[%emt 0:00:17]} 39. Rd1 {[%emt 0:00:31]} Red8 {[%emt 0:00:14]} 40. Qe2 {[%emt 0:00:26]} Qc5 {[%emt 0:01:17]} 41. Qd3 {[%emt 0:00:20]} Re8 {[%emt 0:03:10]} 42. Qe2 {[%emt 0:00:34]} Red8 {[%emt 0:02:36]} 43. Qd3 {[%emt 0:00:05]} R6d7 {[%emt 0:00:53]} 44. Qe2 {[%emt 0:00:33]} 1/2-1/2

[Event "FIDE WCCC Girls-12 2024"]
[Site "Montesilvano"]
[Date "2024.11.18"]
[Round "3.13"]
[White "Chovanec, Alice"]
[Black "Pavithra R V"]
[Result "1-0"]
[ECO "D36"]
[WhiteElo "1694"]
[BlackElo "1854"]
[PlyCount "81"]
[EventDate "2024.11.18"]
[EventType "swiss"]
[EventCountry "ITA"]
[TimeControl "5400+30"]

1. d4 {[%emt 0:00:03]} d5 {[%emt 0:00:07]} 2. c4 {[%emt 0:00:05]} e6 {[%emt 0:00:03]} 3. Nc3 {[%emt 0:00:05]} Nf6 {[%emt 0:00:05]} 4. cxd5 {[%emt 0:00:09]} exd5 {[%emt 0:00:05]} 5. Bg5 {[%emt 0:00:09]} Be7 {[%emt 0:00:27]} 6. e3 {[%emt 0:00:06]} h6 {[%emt 0:00:41]} 7. Bf4 {[%emt 0:00:42]} c6 {[%emt 0:00:09]} 8. Bd3 {[%emt 0:00:10]} Nbd7 {[%emt 0:00:43]} 9. Qc2 {[%emt 0:00:11]} O-O {[%emt 0:01:27]} 10. h3 {[%emt 0:00:41]} Re8 {[%emt 0:02:19]} 11. Nf3 {[%emt 0:00:41]} Nf8 {[%emt 0:07:05]} 12. O-O-O {[%emt 0:04:41]} Be6 {[%emt 0:02:54]} 13. Kb1 {[%emt 0:02:28]} Bd6 {[%emt 0:02:00]} 14. Ne5 {[%emt 0:03:26]} a5 {[%emt 0:25:45]} 15. g4 {[%emt 0:03:21]} Bxe5 {[%emt 0:12:16]} 16. Bxe5 {[%emt 0:01:00]} N6d7 {[%emt 0:00:32]} 17. Bh2 {[%emt 0:02:10]} b5 {[%emt 0:03:21]} 18. f4 {[%emt 0:01:50]} f6 {[%emt 0:01:37]} 19. Rhg1 {[%emt 0:03:39]} Bf7 {[%emt 0:01:55]} 20. Rde1 {[%emt 0:01:58]} Nb6 {[%emt 0:02:10]} 21. h4 {[%emt 0:02:20]} Nc4 {[%emt 0:03:01]} 22. Nd1 {[%emt 0:01:34]} b4 {[%emt 0:02:33]} 23. g5 {[%emt 0:01:20]} fxg5 {[%emt 0:01:01]} 24. hxg5 {[%emt 0:01:23]} hxg5 {[%emt 0:00:36]} 25. Rxg5 {[%emt 0:00:55]} Ne6 {[%emt 0:03:44]} 26. Rgg1 {[%emt 0:00:49]} Nc7 {[%emt 0:04:07]} 27. Bg3 {[%emt 0:28:56]} a4 {[%emt 0:04:26]} 28. Qh2 {[%emt 0:00:55]} Qf6 {[%emt 0:08:39]} 29. Bh4 {[%emt 0:05:38]} Qd6 {[%emt 0:02:33]} 30. Qg2 {[%emt 0:03:24]} Qh6 {[%emt 0:04:25]} 31. Bg5 {[%emt 0:01:06]} Qd6 {[%emt 0:01:35]} 32. Be7 {[%emt 0:03:06]} Qh6 {[%emt 0:01:02]} 33. Rh1 {[%emt 0:01:02]} Bh5 {[%emt 0:00:52]} 34. Bg5 {[%emt 0:01:26]} Qh8 {[%emt 0:00:02]} 35. Bf6 {[%emt 0:09:20]} Kf7 {[%emt 0:02:14]} 36. Rxh5 {[%emt 0:05:20]} Qxh5 {[%emt 0:00:28]} 37. Qxg7+ {[%emt 0:00:10]} Ke6 {[%emt 0:00:04]} 38. Bg6 {[%emt 0:01:17]} Qh2 {[%emt 0:01:33]} 39. e4 {[%emt 0:04:54]} Qd2 {[%emt 0:00:47]} 40. Bf5+ {[%emt 0:00:39]} Kd6 {[%emt 0:00:12]} 41. Qd7# {[%emt 0:07:51]} 1-0